fUST/lending_fUST_20241224
["ID","MTS","AMOUNT","RATE_DAILY","PERIOD"]
[346534698,1735051632327,-1061.6,0.00013698,2]
[346534699,1735051632349,-960.45,0.00013698,2]
[346534700,1735051632370,-500.0,0.00013698,2]
[346534701,1735051632392,-500.0,0.00013698,2]
[346534702,1735051632415,-500.0,0.00013698,2]
[346534703,1735051632439,-1268.26,0.00013698,2]
[346534704,1735051632460,-1712.04,0.00013698,2]
[346534705,1735051632481,-500.0,0.00013698,2]
[346534706,1735051632504,-1602.63,0.00013698,2]
[346534707,1735051632527,-500.0,0.00013698,2]
[346534708,1735051632550,-910.93,0.00013698,2]
[346534709,1735051632580,-500.0,0.00013698,2]
[346534710,1735051632605,-500.0,0.00013698,2]
[346534711,1735051632628,-904.6,0.00013698,2]
[346534712,1735051632650,-500.0,0.00013698,2]
[346534713,1735051632672,-500.0,0.00013698,2]
[346534714,1735051632694,-500.0,0.00013698,2]
[346534715,1735051632715,-599.34,0.00013698,2]
[346534716,1735051632736,-500.0,0.00013698,2]
[346534717,1735051632761,-500.0,0.00013698,2]
[346534718,1735051632782,-974.15,0.00013698,2]
[346534719,1735051632803,-500.0,0.00013698,2]
[346534720,1735051632826,-500.0,0.00013698,2]
[346534721,1735051632850,-500.0,0.00013698,2]
[346534722,1735051632872,-1027.34,0.00013698,2]
[346534723,1735051632894,-500.0,0.00013698,2]
[346534724,1735051632915,-500.0,0.00013698,2]
[346534725,1735051632936,-500.0,0.00013698,2]
[346534726,1735051632958,-573.49,0.00013698,2]
[346534727,1735051632979,-500.0,0.00013698,2]
[346534728,1735051633000,-500.0,0.00013698,2]
[346534729,1735051633021,-500.0,0.00013698,2]
[346534730,1735051633043,-971.48,0.00013698,2]
[346534731,1735051633066,-1104.82,0.00013698,2]
[346534732,1735051633087,-502.78979672,0.00013698,2]
[346534733,1735051633109,-584.9175672,0.00013698,2]
[346534734,1735051633130,-500.0,0.00013698,2]
[346534735,1735051633152,-563.04291529,0.00013698,2]
[346534736,1735051633175,-500.0,0.00013698,2]
[346534737,1735051633197,-1658.71,0.00013698,2]
[346534738,1735051633219,-548.15,0.00013698,2]
[346534739,1735051633240,-500.0,0.00013698,2]
[346534740,1735051633261,-500.0,0.00013698,2]
[346534741,1735051633282,-407.41933687,0.00013698,2]
[346534742,1735051633304,-500.0,0.00013698,2]
[346534743,1735051633328,-500.0,0.00013698,2]
[346534744,1735051633349,-500.0,0.00013698,2]
[346534745,1735051633371,-500.0,0.00013698,2]
[346534746,1735051633392,-500.0,0.00013698,2]
[346534747,1735051633415,-823.91,0.00013698,2]
[346534748,1735051633435,-7401.41052519,0.00013698,2]
[346534749,1735051633459,-500.0,0.00013698,2]
[346534750,1735051633489,-5702.64,0.00013698,2]
[346534751,1735051633518,-633.26,0.00013698,2]
[346534752,1735051633548,-500.0,0.00013698,2]
[346534753,1735051633582,-500.0,0.00013698,2]
[346534754,1735051633612,-877.66,0.00013698,2]
[346534755,1735051633642,-899.95,0.00013698,2]
[346534756,1735051633670,-500.0,0.00013698,2]
[346534757,1735051633698,-500.0,0.00013698,2]
[346534758,1735051633725,-557.04,0.00013698,2]
[346534759,1735051633750,-500.0,0.00013698,2]
[346534760,1735051633779,-500.0,0.00013698,2]
[346534761,1735051633808,-500.0,0.00013698,2]
[346534762,1735051633839,-500.0,0.00013698,2]
[346534763,1735051633869,-500.0,0.00013698,2]
[346534764,1735051633897,-500.0,0.00013698,2]
[346534765,1735051633921,-500.0,0.00013698,2]
[346534766,1735051633951,-500.0,0.00013698,2]
[346534767,1735051633980,-500.0,0.00013698,2]
[346534768,1735051634005,-500.0,0.00013698,2]
[346534769,1735051634034,-500.0,0.00013698,2]
[346534770,1735051634059,-4205.49,0.00013698,2]
[346534771,1735051634085,-1952.12,0.00013698,2]
[346534772,1735051634111,-2080.08,0.00013698,2]
[346534773,1735051634139,-500.0,0.00013698,2]
[346534774,1735051634166,-623.39551875,0.00013698,2]
[346534775,1735051634192,-503.74917035,0.00013698,2]
[346534776,1735051634218,-500.0,0.00013698,2]
[346534777,1735051634244,-500.0,0.00013698,2]
[346534778,1735051634272,-500.0,0.00013698,2]
[346534779,1735051634298,-292.03145014,0.00013698,2]
[346534780,1735051634326,-500.0,0.00013698,2]
[346534781,1735051634353,-2156.02,0.00013698,2]
[346534782,1735051634378,-1385.85,0.00013698,2]
[346534783,1735051634405,-500.0,0.00013698,2]
[346534784,1735051634431,-500.0,0.00013698,2]
[346534785,1735051634459,-500.0,0.00013698,2]
[346534786,1735051634485,-500.0,0.00013698,2]
[346534787,1735051634512,-504.08020372,0.00013698,2]
[346534788,1735051634538,-504.69334862,0.00013698,2]
[346534789,1735051634566,-558.31,0.00013698,2]
[346534790,1735051634592,-500.0,0.00013698,2]
[346534791,1735051634617,-500.0,0.00013698,2]
[346534792,1735051634643,-1686.84,0.00013698,2]
[346534793,1735051634669,-1216.17,0.00013698,2]
[346534794,1735051634696,-500.0,0.00013698,2]
[346534795,1735051634722,-500.0,0.00013698,2]
[346534796,1735051634750,-500.0,0.00013698,2]
[346534797,1735051634776,-500.0,0.00013698,2]
[346534798,1735051634801,-1123.57,0.00013698,2]
[346534799,1735051634831,-1008.29,0.00013698,2]
[346534800,1735051634857,-500.0,0.00013698,2]
[346534801,1735051634886,-500.0,0.00013698,2]
[346534802,1735051634913,-3873.56,0.00013698,2]
[346534803,1735051634940,-500.0,0.00013698,2]
[346534804,1735051634967,-500.0,0.00013698,2]
[346534805,1735051634994,-500.0,0.00013698,2]
[346534806,1735051635020,-500.0,0.00013698,2]
[346534807,1735051635047,-3892.51,0.00013698,2]
[346534808,1735051635076,-500.0,0.00013698,2]
[346534809,1735051635103,-614.34,0.00013698,2]
[346534810,1735051635128,-500.0,0.00013698,2]
[346534811,1735051635150,-1683.73,0.00013698,2]
[346534812,1735051635174,-500.0,0.00013698,2]
[346534813,1735051635421,-504.32,0.00013698,2]
[346534814,1735051635443,-3640.02,0.00013698,2]
[346534815,1735051635465,-500.0,0.00013698,2]
[346534816,1735051635486,-500.0,0.00013698,2]
[346534817,1735051635506,-500.0,0.00013698,2]
[346534818,1735051635527,-1220.17,0.00013698,2]
[346534819,1735051635551,-2066.71,0.00013698,2]
[346534820,1735051635574,-861.55,0.00013698,2]
[346534821,1735051635598,-500.0,0.00013698,2]
[346534822,1735051635620,-500.0,0.00013698,2]
[346534823,1735051635642,-889.92,0.00013698,2]
[346534824,1735051635664,-174.73,0.00013698,2]
[346534825,1735051635686,-664.35,0.00013698,2]
[346534826,1735051635708,-500.0,0.00013698,2]
[346534827,1735051635731,-1531.03,0.00013698,2]
[346534828,1735051635759,-500.0,0.00013698,2]
[346534829,1735051635780,-1377.67,0.00013698,2]
[346534830,1735051635802,-19711.19,0.00013698,2]
[346534831,1735051635827,-500.0,0.00013698,2]
[346534832,1735051635849,-500.0,0.00013698,2]
[346534833,1735051635872,-500.0,0.00013698,2]
[346534834,1735051635893,-500.0,0.00013698,2]
[346534835,1735051635915,-500.0,0.00013698,2]
[346534836,1735051635938,-1035.66,0.00013698,2]
[346534837,1735051635962,-515.16,0.00013698,2]
[346534838,1735051635984,-500.0,0.00013698,2]
[346534839,1735051636006,-500.0,0.00013698,2]
[346534840,1735051636028,-888.69,0.00013698,2]
[346534841,1735051636049,-630.94541275,0.00013698,2]
[346534842,1735051636075,-628.03,0.00013698,2]
[346534843,1735051636097,-500.0,0.00013698,2]
[346534844,1735051636121,-500.0,0.00013698,2]
[346534845,1735051636144,-500.0,0.00013698,2]
[346534846,1735051636167,-2662.84,0.00013698,2]
[346534847,1735051636188,-500.0,0.00013698,2]
[346534848,1735051636211,-500.0,0.00013698,2]
[346534849,1735051636235,-500.0,0.00013698,2]
[346534850,1735051636258,-516.72346495,0.00013698,2]
[346534851,1735051636285,-3117.35,0.00013698,2]
[346534852,1735051636311,-500.0,0.00013698,2]
[346534853,1735051636344,-1575.22,0.00013698,2]
[346534854,1735051636367,-7892.48,0.00013698,2]
[346534855,1735051636391,-520.91,0.00013698,2]
[346534856,1735051636415,-1803.05,0.00013698,2]
[346534857,1735051636438,-500.0,0.00013698,2]
[346534858,1735051636461,-3457.55,0.00013698,2]
[346534859,1735051636485,-500.0,0.00013698,2]
[346534860,1735051636509,-879.21,0.00013698,2]
[346534861,1735051636531,-500.0,0.00013698,2]
[346534862,1735051636554,-500.0,0.00013698,2]
[346534863,1735051636581,-5976.79,0.00013698,2]
[346534864,1735051636602,-568.42,0.00013698,2]
[346534865,1735051636624,-500.0,0.00013698,2]
[346534866,1735051636646,-581.9493321,0.00013698,2]
[346534867,1735051636669,-2712.66,0.00013698,2]
[346534868,1735051636692,-500.0,0.00013698,2]
[346534869,1735051636713,-500.0,0.00013698,2]
[346534870,1735051636735,-1403.92,0.00013698,2]
[346534871,1735051636757,-606.93,0.00013698,2]
[346534872,1735051636785,-500.0,0.00013698,2]
[346534873,1735051636809,-500.0,0.00013698,2]
[346534874,1735051636832,-1493.03,0.00013698,2]
[346534875,1735051636854,-1064.12,0.00013698,2]
[346534876,1735051636876,-500.0,0.00013698,2]
[346534877,1735051636902,-500.0,0.00013698,2]
[346534878,1735051636927,-2977.8,0.00013698,2]
[346534879,1735051636949,-929.24,0.00013698,2]
[346534880,1735051636972,-500.0,0.00013698,2]
[346534881,1735051636995,-500.0,0.00013698,2]
[346534882,1735051637016,-500.0,0.00013698,2]
[346534883,1735051637039,-500.0,0.00013698,2]
[346534884,1735051637060,-500.0,0.00013698,2]
[346534885,1735051637084,-17591.87,0.00013698,2]
[346534886,1735051637106,-500.0,0.00013698,2]
[346534887,1735051637127,-500.0,0.00013698,2]
[346534888,1735051637151,-534.78,0.00013698,2]
[346534889,1735051637174,-9474.95,0.00013698,2]
[346534890,1735051637194,-656.63,0.00013698,2]
[346534891,1735051637217,-942.17,0.00013698,2]
[346534892,1735051637239,-11175.91,0.00013698,2]
[346534893,1735051637262,-796.71,0.00013698,2]
[346534894,1735051637283,-500.0,0.00013698,2]
[346534895,1735051637305,-500.0,0.00013698,2]
[346534896,1735051637329,-1169.6,0.00013698,2]
[346534897,1735051637351,-2762.68,0.00013698,2]
[346534898,1735051637374,-73617.23,0.00013698,2]
[346534899,1735051637396,-1885.81,0.00013698,2]
[346534900,1735051637418,-1697.76,0.00013698,2]
[346534901,1735051637439,-500.0,0.00013698,2]
[346534902,1735051637460,-500.0,0.00013698,2]
[346534903,1735051637482,-1130.66,0.00013698,2]
[346534904,1735051637505,-500.0,0.00013698,2]
[346534905,1735051637528,-500.0,0.00013698,2]
[346534906,1735051637552,-773.14,0.00013698,2]
[346534907,1735051637583,-206.112916,0.00013699,2]
[346534908,1735051637607,-266.72509295,0.00013699,2]
[346534909,1735051637631,-169.92,0.00013762,2]
[346534910,1735051637654,-153.0,0.000138,2]
[346534911,1735051637677,-214.1722873,0.000138,2]
[346534912,1735051637699,-159.0,0.00013899,2]
[346534913,1735051637723,-195.0,0.00013899,2]
[346534914,1735051637753,-553.49,0.00013972,2]
[346534915,1735051637776,-371.29278506,0.00013972,2]
[346534916,1735051637799,-500.0,0.00013972,2]
[346534917,1735051637826,-500.0,0.00013972,2]
[346534918,1735051637848,-500.0,0.00013972,2]
[346534919,1735051637870,-500.0,0.00013972,2]
[346534920,1735051637894,-500.0,0.00013972,2]
[346534921,1735051637919,-500.0,0.00013972,2]
[346534922,1735051637943,-500.0,0.00013972,2]
[346534923,1735051637968,-500.0,0.00013972,2]
[346534924,1735051637990,-500.0,0.00013972,2]
[346534925,1735051638015,-500.0,0.00013972,2]
[346534926,1735051638038,-326.1375484,0.00013972,2]
[346534927,1735051638061,-500.0,0.00013972,2]
[346534928,1735051638089,-500.0,0.00013972,2]
[346534929,1735051638112,-500.0,0.00013972,2]
[346534930,1735051638135,-500.0,0.00013972,2]
[346534931,1735051638158,-500.0,0.00013972,2]
[346534932,1735051638182,-790.47,0.00013972,2]
[346534933,1735051638205,-500.0,0.00013972,2]
[346534934,1735051638229,-810.76,0.00013972,2]
[346534935,1735051638252,-500.0,0.00013972,2]
[346534936,1735051638276,-500.0,0.00013972,2]
[346534937,1735051638300,-500.0,0.00013972,2]
[346534938,1735051638324,-500.0,0.00013972,2]
[346534939,1735051638346,-254.27688399,0.00013972,2]
[346534940,1735051638370,-500.0,0.00013972,2]
[346534941,1735051638393,-500.0,0.00013972,2]
[346534942,1735051638415,-507.57619124,0.00013972,2]
[346534943,1735051638438,-500.0,0.00013972,2]
[346534944,1735051638462,-500.0,0.00013972,2]
[346534945,1735051638485,-500.0,0.00013972,2]
[346534946,1735051638507,-500.0,0.00013972,2]
[346534947,1735051638530,-500.0,0.00013972,2]
[346534948,1735051638557,-500.0,0.00013972,2]
[346534949,1735051638582,-375.93882603,0.00013972,2]
[346535060,1735051835069,-454.79603169,0.00013598,2]
[346535061,1735051835079,-300.0,0.00013697,2]
[346535062,1735051835089,-95.37340615,0.00013698,2]
[346535064,1735051835136,-757.46659385,0.00013698,2]
[346535066,1735051835147,-500.0,0.00013698,2]
[346535068,1735051835156,-966.28,0.00013698,2]
[346535071,1735051835165,-500.0,0.00013698,2]
[346535074,1735051835175,-1605.27,0.00013698,2]
[346535077,1735051835185,-500.0,0.00013698,2]
[346535080,1735051835194,-1616.55,0.00013698,2]
[346535082,1735051835203,-735.24,0.00013698,2]
[346535084,1735051835214,-500.0,0.00013698,2]
[346535086,1735051835223,-500.0,0.00013698,2]
[346535088,1735051835232,-1320.27,0.00013698,2]
[346535090,1735051835243,-500.0,0.00013698,2]
[346535092,1735051835253,-500.0,0.00013698,2]
[346535094,1735051835262,-500.0,0.00013698,2]
[346535095,1735051835271,-535.04,0.00013698,2]
[346535096,1735051835280,-500.0,0.00013698,2]
[346535097,1735051835290,-992.51,0.00013698,2]
[346535098,1735051835299,-507.36,0.00013698,2]
[346535099,1735051835309,-500.0,0.00013698,2]
[346535100,1735051835318,-500.0,0.00013698,2]
[346535101,1735051835327,-1215.41,0.00013698,2]
[346535102,1735051835337,-500.0,0.00013698,2]
[346535103,1735051835346,-500.0,0.00013698,2]
[346535104,1735051835356,-500.0,0.00013698,2]
[346535105,1735051835366,-588.74,0.00013698,2]
[346535106,1735051835375,-499.0,0.00013698,2]
[346535107,1735051835385,-18889.89,0.00013698,2]
[346535108,1735051835394,-500.0,0.00013698,2]
[346535109,1735051835403,-3712.16,0.00013698,2]
[346535110,1735051835412,-1535.85,0.00013698,2]
[346535111,1735051835421,-500.0,0.00013698,2]
[346535112,1735051835431,-500.0,0.00013698,2]
[346535113,1735051835440,-1169.32,0.00013698,2]
[346535114,1735051835450,-3730.32,0.00013698,2]
[346535115,1735051835459,-872.98,0.00013698,2]
[346535116,1735051835468,-920.43,0.00013698,2]
[346535117,1735051835477,-500.0,0.00013698,2]
[346535118,1735051835486,-500.0,0.00013698,2]
[346535119,1735051835496,-3488.35,0.00013698,2]
[346535120,1735051835505,-500.0,0.00013698,2]
[346535121,1735051835514,-866.91,0.00013698,2]
[346535122,1735051835523,-500.0,0.00013698,2]
[346535123,1735051835532,-500.0,0.00013698,2]
[346535124,1735051835541,-636.67,0.00013698,2]
[346535125,1735051835551,-1467.24,0.00013698,2]
[346535126,1735051835561,-7563.63,0.00013698,2]
[346535127,1735051835570,-500.0,0.00013698,2]
[346535128,1735051835580,-500.0,0.00013698,2]
[346535129,1735051835589,-851.67,0.00013698,2]
[346535130,1735051835598,-500.0,0.00013698,2]
[346535131,1735051835607,-500.0,0.00013698,2]
[346535132,1735051835617,-500.0,0.00013698,2]
[346535133,1735051835627,-1017.37,0.00013698,2]
[346535134,1735051835636,-500.0,0.00013698,2]
[346535135,1735051835645,-549.6,0.00013698,2]
[346535136,1735051835654,-890.53,0.00013698,2]
[346535137,1735051835664,-500.0,0.00013698,2]
[346535138,1735051835673,-500.0,0.00013698,2]
[346535139,1735051835682,-500.0,0.00013698,2]
[346535140,1735051835692,-500.0,0.00013698,2]
[346535141,1735051835701,-1640.71,0.00013698,2]
[346535142,1735051835711,-500.0,0.00013698,2]
[346535143,1735051835720,-984.53,0.00013698,2]
[346535144,1735051835729,-1058.78,0.00013698,2]
[346535145,1735051835739,-504.69397731,0.00013698,2]
[346535146,1735051835748,-500.0,0.00013698,2]
[346535147,1735051835757,-500.0,0.00013698,2]
[346535148,1735051835766,-500.0,0.00013698,2]
[346535149,1735051835776,-500.0,0.00013698,2]
[346535150,1735051835785,-2551.89,0.00013698,2]
[346535151,1735051835794,-73750.6,0.00013698,2]
[346535152,1735051835804,-500.0,0.00013698,2]
[346535153,1735051835813,-2987.46,0.00013698,2]
[346535154,1735051835822,-500.0,0.00013698,2]
[346535155,1735051835831,-500.0,0.00013698,2]
[346535156,1735051835841,-724.6,0.00013698,2]
[346535157,1735051835850,-500.0,0.00013698,2]
[346535158,1735051835861,-1430.82,0.00013698,2]
[346535159,1735051835871,-500.0,0.00013698,2]
[346535160,1735051835880,-512.49,0.00013698,2]
[346535161,1735051835890,-500.0,0.00013698,2]
[346535162,1735051835899,-3313.48,0.00013698,2]
[346535163,1735051835909,-5727.76,0.00013698,2]
[346535164,1735051835918,-525.31,0.00013698,2]
[346535165,1735051835928,-4030.27,0.00013698,2]
[346535166,1735051835938,-10710.25,0.00013698,2]
[346535167,1735051835947,-510.52685621,0.00013698,2]
[346535168,1735051835956,-500.0,0.00013698,2]
[346535169,1735051835967,-500.0,0.00013698,2]
[346535170,1735051835976,-318.22496264,0.00013698,2]
[346535171,1735051835989,-500.0,0.00013698,2]
[346535172,1735051835999,-1345.42,0.00013698,2]
[346535173,1735051836008,-1807.24,0.00013698,2]
[346535174,1735051836017,-16858.87,0.00013698,2]
[346535175,1735051836027,-500.0,0.00013698,2]
[346535176,1735051836037,-743.19,0.00013698,2]
[346535177,1735051836046,-500.0,0.00013698,2]
[346535178,1735051836055,-2853.73,0.00013698,2]
[346535179,1735051836065,-500.0,0.00013698,2]
[346535180,1735051836075,-1870.78,0.00013698,2]
[346535181,1735051836084,-156.0,0.00013899,2]
[346535182,1735051836094,-156.0,0.00013899,2]
[346535183,1735051836103,-159.68,0.00013899,2]
[346535184,1735051836112,-156.0,0.00013899,2]
[346535185,1735051836122,-156.0,0.00013899,2]
[346535186,1735051836132,-156.0,0.00013899,2]
[346535187,1735051836142,-156.0,0.00013899,2]
[346535188,1735051836151,-156.0,0.00013899,2]
[346535189,1735051836160,-156.0,0.00013899,2]
[346535190,1735051836170,-156.0,0.00013899,2]
[346535191,1735051836179,-156.0,0.00013899,2]
[346535192,1735051836188,-156.0,0.00013899,2]
[346535193,1735051836198,-156.0,0.00013899,2]
[346535194,1735051836208,-156.0,0.00013899,2]
[346535195,1735051836220,-156.0,0.00013899,2]
[346535196,1735051836230,-156.0,0.00013899,2]
[346535197,1735051836239,-156.0,0.00013899,2]
[346535198,1735051836249,-156.0,0.00013899,2]
[346535199,1735051836258,-156.0,0.00013899,2]
[346535200,1735051836267,-156.0,0.00013899,2]
[346535201,1735051836276,-156.0,0.00013899,2]
[346535202,1735051836286,-156.0,0.00013899,2]
[346535203,1735051836295,-156.0,0.00013899,2]
[346535204,1735051836305,-156.0,0.00013899,2]
[346535205,1735051836314,-156.0,0.00013899,2]
[346535206,1735051836323,-197.11,0.00013899,2]
[346535207,1735051836333,-454.79603169,0.00013911,2]
[346535208,1735051836342,-266.30536503,0.00013972,2]
[346535209,1735051836352,-124.06117397,0.00013972,2]
[346535210,1735051836361,-500.0,0.00013972,2]
[346535211,1735051836370,-416.32345979,0.00013972,2]
[346535212,1735051836379,-830.01,0.00013972,2]
[346535213,1735051836388,-500.0,0.00013972,2]
[346535214,1735051836398,-500.0,0.00013972,2]
[346535215,1735051836408,-500.0,0.00013972,2]
[346535216,1735051836417,-500.0,0.00013972,2]
[346535217,1735051836426,-500.0,0.00013972,2]
[346535218,1735051836435,-425.02415004,0.00013972,2]
[346535219,1735051836446,-623.30972656,0.00013972,2]
[346535220,1735051836456,-500.0,0.00013972,2]
[346535221,1735051836468,-500.0,0.00013972,2]
[346535222,1735051836479,-599.34,0.00013972,2]
[346535223,1735051836490,-500.0,0.00013972,2]
[346535224,1735051836500,-974.15,0.00013972,2]
[346535225,1735051836513,-500.0,0.00013972,2]
[346535226,1735051836523,-500.0,0.00013972,2]
[346535227,1735051836533,-500.0,0.00013972,2]
[346535228,1735051836544,-500.0,0.00013972,2]
[346535229,1735051836553,-500.0,0.00013972,2]
[346535230,1735051836563,-500.0,0.00013972,2]
[346535231,1735051836573,-500.0,0.00013972,2]
[346535232,1735051836582,-971.48,0.00013972,2]
[346535233,1735051836592,-500.0,0.00013972,2]
[346535234,1735051836602,-1658.71,0.00013972,2]
[346535235,1735051836612,-500.0,0.00013972,2]
[346535236,1735051836622,-500.0,0.00013972,2]
[346535237,1735051836632,-500.0,0.00013972,2]
[346535238,1735051836641,-500.0,0.00013972,2]
[346535239,1735051836651,-500.0,0.00013972,2]
[346535240,1735051836661,-500.0,0.00013972,2]
[346535241,1735051836671,-823.91,0.00013972,2]
[346535242,1735051836680,-500.0,0.00013972,2]
[346535243,1735051836690,-508.02368412,0.00013972,2]
[346535244,1735051836699,-5702.64,0.00013972,2]
[346535245,1735051836710,-633.26,0.00013972,2]
[346535246,1735051836725,-507.6858105,0.00013972,2]
[346535247,1735051836734,-500.0,0.00013972,2]
[346535248,1735051836744,-877.66,0.00013972,2]
[346535249,1735051836753,-899.95,0.00013972,2]
[346535250,1735051836762,-500.0,0.00013972,2]
[346535251,1735051836772,-500.0,0.00013972,2]
[346535252,1735051836782,-557.04,0.00013972,2]
[346535253,1735051836791,-500.0,0.00013972,2]
[346535254,1735051836801,-500.0,0.00013972,2]
[346535255,1735051836811,-500.0,0.00013972,2]
[346535256,1735051836820,-500.0,0.00013972,2]
[346535257,1735051836830,-500.0,0.00013972,2]
[346535258,1735051836839,-500.0,0.00013972,2]
[346535259,1735051836849,-500.0,0.00013972,2]
[346535260,1735051836858,-500.0,0.00013972,2]
[346535261,1735051836869,-500.0,0.00013972,2]
[346535262,1735051836884,-500.0,0.00013972,2]
[346535263,1735051836894,-500.0,0.00013972,2]
[346535264,1735051836904,-2080.08,0.00013972,2]
[346535265,1735051836913,-500.0,0.00013972,2]
[346535266,1735051836924,-500.0,0.00013972,2]
[346535267,1735051836934,-500.0,0.00013972,2]
[346535268,1735051836943,-500.0,0.00013972,2]
[346535269,1735051836953,-500.0,0.00013972,2]
[346535270,1735051836966,-500.0,0.00013972,2]
[346535271,1735051836975,-500.0,0.00013972,2]
[346535272,1735051836987,-500.0,0.00013972,2]
[346535273,1735051836998,-500.0,0.00013972,2]
[346535274,1735051837008,-500.0,0.00013972,2]
[346535275,1735051837018,-1216.17,0.00013972,2]
[346535276,1735051837029,-500.0,0.00013972,2]
[346535277,1735051837038,-500.0,0.00013972,2]
[346535278,1735051837048,-500.0,0.00013972,2]
[346535279,1735051837057,-500.0,0.00013972,2]
[346535280,1735051837067,-500.0,0.00013972,2]
[346535281,1735051837076,-500.0,0.00013972,2]
[346535282,1735051837085,-500.0,0.00013972,2]
[346535283,1735051837094,-500.0,0.00013972,2]
[346535284,1735051837104,-500.0,0.00013972,2]
[346535285,1735051837114,-500.0,0.00013972,2]
[346535286,1735051837123,-861.55,0.00013972,2]
[346535287,1735051837132,-500.0,0.00013972,2]
[346535288,1735051837142,-500.0,0.00013972,2]
[346535289,1735051837151,-174.73,0.00013972,2]
[346535290,1735051837161,-500.0,0.00013972,2]
[346535291,1735051837170,-500.0,0.00013972,2]
[346535292,1735051837180,-500.0,0.00013972,2]
[346535293,1735051837190,-500.0,0.00013972,2]
[346535294,1735051837199,-609.82039449,0.00013972,2]
[346535295,1735051837209,-628.03,0.00013972,2]
[346535296,1735051837223,-500.0,0.00013972,2]
[346535297,1735051837232,-375.64965632,0.00013972,2]
[346535298,1735051837242,-500.0,0.00013972,2]
[346535299,1735051837251,-1575.22,0.00013972,2]
[346535300,1735051837261,-1803.05,0.00013972,2]
[346535301,1735051837270,-500.0,0.00013972,2]
[346535302,1735051837280,-500.0,0.00013972,2]
[346535303,1735051837289,-879.21,0.00013972,2]
[346535304,1735051837299,-500.0,0.00013972,2]
[346535305,1735051837308,-500.0,0.00013972,2]
[346535306,1735051837317,-568.42,0.00013972,2]
[346535307,1735051837326,-2712.66,0.00013972,2]
[346535308,1735051837336,-500.0,0.00013972,2]
[346535309,1735051837345,-500.0,0.00013972,2]
[346535310,1735051837355,-606.93,0.00013972,2]
[346535311,1735051837364,-500.0,0.00013972,2]
[346535312,1735051837373,-1064.12,0.00013972,2]
[346535313,1735051837382,-500.0,0.00013972,2]
[346535314,1735051837392,-500.0,0.00013972,2]
[346535315,1735051837401,-500.0,0.00013972,2]
[346535316,1735051837410,-500.0,0.00013972,2]
[346535317,1735051837420,-500.0,0.00013972,2]
[346535318,1735051837429,-465.1591853,0.00013972,2]
[346535319,1735051837438,-500.0,0.00013972,2]
[346535320,1735051837448,-9474.95,0.00013972,2]
[346535321,1735051837456,-656.63,0.00013972,2]
[346535322,1735051837469,-942.17,0.00013972,2]
[346535323,1735051837478,-796.71,0.00013972,2]
[346535324,1735051837488,-500.0,0.00013972,2]
[346535325,1735051837497,-500.0,0.00013972,2]